[Event "Titled Tuesday Blitz May 03 Early 2022"]
[White "Laohawirapap, Prin"]
[Black "Molina, Roberto Junio Brito"]
[WhiteFideId "6205003"]
[BlackFideId "2109450"]
[WhiteElo "1832"]
[BlackElo "2432"]
[Result "0-1"]
[Round "08"]
[TimeControl "180+1"]
[Date "2022.05.03"]
[WhiteClock "0:00:02"]
[BlackClock "0:00:18"]

1. e4 {[%clk 0:03:00]}  c6 {[%clk 0:02:58]} 2. d4 {[%clk 0:03:00]}  d5 {[%clk 0:02:59]} 3. e5 {[%clk 0:03:01]}  Bf5 {[%clk 0:02:58]} 4. Nd2 {[%clk 0:03:00]}  e6 {[%clk 0:02:56]} 5. Nb3 {[%clk 0:02:59]}  Nd7 {[%clk 0:02:55]} 6. Nf3 {[%clk 0:02:56]}  a6 {[%clk 0:02:55]} 7. Be2 {[%clk 0:02:53]}  c5 {[%clk 0:02:55]} 8. dxc5 {[%clk 0:02:51]}  Nxc5 {[%clk 0:02:56]} 9. Nbd4 {[%clk 0:02:42]}  Bg6 {[%clk 0:02:55]} 10. c3 {[%clk 0:02:38]}  Ne7 {[%clk 0:02:53]} 11. O-O {[%clk 0:02:34]}  Nc6 {[%clk 0:02:51]} 12. Nxc6 {[%clk 0:02:32]}  bxc6 {[%clk 0:02:52]} 13. Nd4 {[%clk 0:02:33]}  Qc7 {[%clk 0:02:48]} 14. f4 {[%clk 0:02:33]}  Be4 {[%clk 0:02:41]} 15. b4 {[%clk 0:02:21]}  Nd7 {[%clk 0:02:41]} 16. Qa4 {[%clk 0:02:17]}  c5 {[%clk 0:02:37]} 17. Nb5 {[%clk 0:01:46]}  Qb7 {[%clk 0:02:37]} 18. Nd6+ {[%clk 0:01:44]}  Bxd6 {[%clk 0:02:37]} 19. exd6 {[%clk 0:01:44]}  O-O {[%clk 0:02:29]} 20. bxc5 {[%clk 0:01:36]}  Nxc5 {[%clk 0:02:28]} 21. Qd4 {[%clk 0:01:35]}  Nd7 {[%clk 0:02:24]} 22. Bf3 {[%clk 0:01:07]}  Nf6 {[%clk 0:01:37]} 23. Bxe4 {[%clk 0:00:55]}  Nxe4 {[%clk 0:01:37]} 24. f5 {[%clk 0:00:54]}  Nxd6 {[%clk 0:01:24]} 25. f6 {[%clk 0:00:34]}  Qa7 {[%clk 0:01:24]} 26. Ba3 {[%clk 0:00:15]}  Qxd4+ {[%clk 0:01:20]} 27. cxd4 {[%clk 0:00:16]}  Rfd8 {[%clk 0:01:20]} 28. Bxd6 {[%clk 0:00:13]}  Rxd6 {[%clk 0:01:20]} 29. fxg7 {[%clk 0:00:12]}  Kxg7 {[%clk 0:01:18]} 30. Rab1 {[%clk 0:00:12]}  Ra7 {[%clk 0:01:18]} 31. Rb3 {[%clk 0:00:10]}  Rc6 {[%clk 0:01:07]} 32. Rg3+ {[%clk 0:00:10]}  Kf8 {[%clk 0:01:07]} 33. Rh3 {[%clk 0:00:10]}  Rc4 {[%clk 0:01:04]} 34. Rf4 {[%clk 0:00:06]}  Rc2 {[%clk 0:00:51]} 35. Rxh7 {[%clk 0:00:05]}  Rac7 {[%clk 0:00:32]} 36. h3 {[%clk 0:00:05]}  Rxa2 {[%clk 0:00:31]} 37. Rg4 {[%clk 0:00:04]}  Rac2 {[%clk 0:00:24]} 38. Rh8+ {[%clk 0:00:03]}  Ke7 {[%clk 0:00:25]} 39. Ra8 {[%clk 0:00:04]}  R2c6 {[%clk 0:00:24]} 40. h4 {[%clk 0:00:05]}  Rc8 {[%clk 0:00:20]} 41. Rg8 {[%clk 0:00:03]}  Rxa8 {[%clk 0:00:18]} 42. Rxa8 {[%clk 0:00:03]}  Kf6 {[%clk 0:00:19]} 43. g4 {[%clk 0:00:02]}  Rc4 {[%clk 0:00:18]} 0-1


[Site "https://www.chess.com"]

[Event "Titled Tuesday Blitz May 03 Early 2022"]
[White "Lashkin, Jegor"]
[Black "Mammadzada, Gunay"]
[WhiteFideId "13907808"]
[BlackFideId "13403729"]
[WhiteElo "2368"]
[BlackElo "2242"]
[Result "1-0"]
[Round "08"]
[TimeControl "180+1"]
[Date "2022.05.03"]
[WhiteClock "0:00:07"]
[BlackClock "0:00:02"]

1. Nf3 {[%clk 0:03:00]}  d5 {[%clk 0:02:56]} 2. b3 {[%clk 0:03:01]}  c5 {[%clk 0:02:52]} 3. e3 {[%clk 0:03:00]}  Nc6 {[%clk 0:02:51]} 4. Bb5 {[%clk 0:03:00]}  Bd7 {[%clk 0:02:51]} 5. Bb2 {[%clk 0:03:00]}  Nf6 {[%clk 0:02:46]} 6. O-O {[%clk 0:03:00]}  e6 {[%clk 0:02:46]} 7. d4 {[%clk 0:02:55]}  cxd4 {[%clk 0:02:43]} 8. exd4 {[%clk 0:02:55]}  Bd6 {[%clk 0:02:42]} 9. Nbd2 {[%clk 0:02:51]}  O-O {[%clk 0:02:42]} 10. Re1 {[%clk 0:02:49]}  Ne7 {[%clk 0:02:33]} 11. Bd3 {[%clk 0:02:49]}  Ng6 {[%clk 0:02:31]} 12. Ne5 {[%clk 0:02:45]}  Qc7 {[%clk 0:02:24]} 13. Rc1 {[%clk 0:02:38]}  Rac8 {[%clk 0:01:47]} 14. g3 {[%clk 0:02:37]}  Qa5 {[%clk 0:01:42]} 15. a3 {[%clk 0:02:35]}  Bb5 {[%clk 0:01:34]} 16. c4 {[%clk 0:02:27]}  dxc4 {[%clk 0:01:31]} 17. bxc4 {[%clk 0:02:16]}  Ba4 {[%clk 0:01:30]} 18. Qe2 {[%clk 0:02:13]}  Bxe5 {[%clk 0:01:30]} 19. dxe5 {[%clk 0:02:12]}  Nd7 {[%clk 0:01:30]} 20. Nf3 {[%clk 0:02:02]}  Bc6 {[%clk 0:01:24]} 21. Ng5 {[%clk 0:02:02]}  Rfd8 {[%clk 0:01:13]} 22. h4 {[%clk 0:01:04]}  Ndf8 {[%clk 0:00:39]} 23. h5 {[%clk 0:00:54]}  Ne7 {[%clk 0:00:39]} 24. h6 {[%clk 0:00:53]}  g6 {[%clk 0:00:30]} 25. Be4 {[%clk 0:00:53]}  Rd2 {[%clk 0:00:26]} 26. Qf3 {[%clk 0:00:54]}  Nf5 {[%clk 0:00:26]} 27. Bc3 {[%clk 0:00:53]}  Qd8 {[%clk 0:00:16]} 28. Bxd2 {[%clk 0:00:51]}  Qxd2 {[%clk 0:00:17]} 29. Bxc6 {[%clk 0:00:52]}  Qxg5 {[%clk 0:00:09]} 30. Bxb7 {[%clk 0:00:48]}  Rc5 {[%clk 0:00:08]} 31. Qf4 {[%clk 0:00:41]}  Qh5 {[%clk 0:00:05]} 32. Bf3 {[%clk 0:00:39]}  Qxh6 {[%clk 0:00:01]} 33. Qxh6 {[%clk 0:00:39]}  Nxh6 {[%clk 0:00:02]} 34. Bg2 {[%clk 0:00:24]}  Nf5 {[%clk 0:00:02]} 35. g4 {[%clk 0:00:22]}  Nd4 {[%clk 0:00:01]} 36. f4 {[%clk 0:00:20]}  Nd7 {[%clk 0:00:01]} 37. Kf2 {[%clk 0:00:19]}  Nb6 {[%clk 0:00:02]} 38. Bf1 {[%clk 0:00:19]}  Nb3 {[%clk 0:00:02]} 39. Rc3 {[%clk 0:00:18]}  Na5 {[%clk 0:00:03]} 40. Rd1 {[%clk 0:00:18]}  Nc6 {[%clk 0:00:04]} 41. Rd6 {[%clk 0:00:18]}  Kf8 {[%clk 0:00:05]} 42. Ke3 {[%clk 0:00:18]}  Na5 {[%clk 0:00:05]} 43. Rd4 {[%clk 0:00:16]}  Ke7 {[%clk 0:00:05]} 44. Be2 {[%clk 0:00:16]}  g5 {[%clk 0:00:05]} 45. Rd1 {[%clk 0:00:13]}  Nc6 {[%clk 0:00:04]} 46. Rh1 {[%clk 0:00:10]}  gxf4+ {[%clk 0:00:05]} 47. Kxf4 {[%clk 0:00:11]}  Rxe5 {[%clk 0:00:05]} 48. Bf3 {[%clk 0:00:11]}  Rc5 {[%clk 0:00:03]} 49. Rxh7 {[%clk 0:00:09]}  Ne5 {[%clk 0:00:02]} 50. Be2 {[%clk 0:00:09]}  Ng6+ {[%clk 0:00:01]} 51. Ke3 {[%clk 0:00:09]}  Nd5+ {[%clk 0:00:02]} 52. Kd4 {[%clk 0:00:08]}  Nxc3 {[%clk 0:00:02]} 53. Kxc5 {[%clk 0:00:08]}  Nxe2 {[%clk 0:00:03]} 54. Kc6 {[%clk 0:00:08]}  Nd4+ {[%clk 0:00:02]} 55. Kb7 {[%clk 0:00:07]}  Ne5 {[%clk 0:00:03]} 56. c5 {[%clk 0:00:07]}  Kd7 {[%clk 0:00:02]} 57. g5 {[%clk 0:00:07]} 1-0


[Site "https://www.chess.com"]

[Event "Titled Tuesday Blitz May 03 Early 2022"]
[White "Lazavik, Denis"]
[Black "Babazada, Khazar"]
[WhiteFideId "13515110"]
[BlackFideId "13413554"]
[WhiteElo "2437"]
[BlackElo "2406"]
[Result "1-0"]
[Round "08"]
[TimeControl "180+1"]
[Date "2022.05.03"]
[WhiteClock "0:00:41"]
[BlackClock "0:00:15"]

1. d4 {[%clk 0:03:00]}  Nf6 {[%clk 0:03:00]} 2. c4 {[%clk 0:03:01]}  e6 {[%clk 0:03:01]} 3. Nf3 {[%clk 0:03:01]}  d5 {[%clk 0:03:01]} 4. g3 {[%clk 0:03:01]}  Bb4+ {[%clk 0:02:55]} 5. Bd2 {[%clk 0:03:01]}  a5 {[%clk 0:02:54]} 6. Bg2 {[%clk 0:02:58]}  dxc4 {[%clk 0:02:55]} 7. Qc2 {[%clk 0:02:58]}  Bxd2+ {[%clk 0:02:30]} 8. Qxd2 {[%clk 0:02:56]}  O-O {[%clk 0:02:24]} 9. Na3 {[%clk 0:02:39]}  b6 {[%clk 0:01:55]} 10. Ne5 {[%clk 0:02:28]}  Nd5 {[%clk 0:01:55]} 11. Naxc4 {[%clk 0:02:23]}  Bb7 {[%clk 0:01:54]} 12. O-O {[%clk 0:02:22]}  f6 {[%clk 0:01:48]} 13. Nd3 {[%clk 0:02:15]}  Nc6 {[%clk 0:01:43]} 14. e3 {[%clk 0:02:12]}  Qe7 {[%clk 0:01:39]} 15. Rac1 {[%clk 0:02:04]}  Rad8 {[%clk 0:01:39]} 16. a3 {[%clk 0:02:01]}  Qf7 {[%clk 0:01:26]} 17. Qc2 {[%clk 0:01:57]}  h5 {[%clk 0:01:19]} 18. h4 {[%clk 0:01:42]}  g6 {[%clk 0:01:19]} 19. Rfd1 {[%clk 0:01:39]}  Rd7 {[%clk 0:01:20]} 20. Qb3 {[%clk 0:01:25]}  Ba8 {[%clk 0:01:14]} 21. Nd2 {[%clk 0:01:16]}  Rfd8 {[%clk 0:01:08]} 22. Ne4 {[%clk 0:01:16]}  Kg7 {[%clk 0:01:03]} 23. Nc3 {[%clk 0:01:06]}  Nce7 {[%clk 0:01:03]} 24. e4 {[%clk 0:00:58]}  Nxc3 {[%clk 0:01:02]} 25. bxc3 {[%clk 0:00:58]}  e5 {[%clk 0:00:44]} 26. d5 {[%clk 0:00:58]}  Nc8 {[%clk 0:00:40]} 27. c4 {[%clk 0:00:57]}  c5 {[%clk 0:00:40]} 28. f4 {[%clk 0:00:55]}  Re7 {[%clk 0:00:38]} 29. fxe5 {[%clk 0:00:53]}  fxe5 {[%clk 0:00:39]} 30. Rf1 {[%clk 0:00:53]}  Qe8 {[%clk 0:00:38]} 31. Bh3 {[%clk 0:00:54]}  Nd6 {[%clk 0:00:36]} 32. Rce1 {[%clk 0:00:50]}  b5 {[%clk 0:00:34]} 33. Nxc5 {[%clk 0:00:50]}  bxc4 {[%clk 0:00:34]} 34. Qc3 {[%clk 0:00:50]}  Kh7 {[%clk 0:00:31]} 35. Ne6 {[%clk 0:00:50]}  Qh8 {[%clk 0:00:20]} 36. Nxd8 {[%clk 0:00:42]}  Qxd8 {[%clk 0:00:21]} 37. Be6 {[%clk 0:00:42]}  Bb7 {[%clk 0:00:15]} 38. Qxe5 {[%clk 0:00:41]} 1-0


[Site "https://www.chess.com"]

[Event "Titled Tuesday Blitz May 03 Early 2022"]
[White "Le, Tuan Minh"]
[Black "Bluebaum, Matthias"]
[WhiteFideId "12401153"]
[BlackFideId "24651516"]
[WhiteElo "2450"]
[BlackElo "2550"]
[Result "0-1"]
[Round "08"]
[TimeControl "180+1"]
[Date "2022.05.03"]
[WhiteClock "0:00:02"]
[BlackClock "0:00:25"]

1. d4 {[%clk 0:03:00]}  d5 {[%clk 0:02:58]} 2. Nf3 {[%clk 0:03:01]}  Nf6 {[%clk 0:02:58]} 3. c4 {[%clk 0:03:01]}  e6 {[%clk 0:02:58]} 4. Nc3 {[%clk 0:03:01]}  Bb4 {[%clk 0:02:58]} 5. Bg5 {[%clk 0:03:01]}  h6 {[%clk 0:02:57]} 6. Bxf6 {[%clk 0:03:00]}  Qxf6 {[%clk 0:02:58]} 7. Qb3 {[%clk 0:03:00]}  c5 {[%clk 0:02:56]} 8. e3 {[%clk 0:02:51]}  O-O {[%clk 0:02:52]} 9. cxd5 {[%clk 0:02:37]}  exd5 {[%clk 0:02:53]} 10. a3 {[%clk 0:02:31]}  Bxc3+ {[%clk 0:02:52]} 11. Qxc3 {[%clk 0:02:31]}  Nd7 {[%clk 0:02:38]} 12. Be2 {[%clk 0:02:25]}  b6 {[%clk 0:02:38]} 13. O-O-O {[%clk 0:02:23]}  Bb7 {[%clk 0:02:29]} 14. Kb1 {[%clk 0:02:03]}  Rac8 {[%clk 0:02:26]} 15. Ka1 {[%clk 0:01:59]}  Qe7 {[%clk 0:02:10]} 16. Rc1 {[%clk 0:01:39]}  Nf6 {[%clk 0:02:10]} 17. Bd3 {[%clk 0:01:37]}  Rc7 {[%clk 0:02:00]} 18. dxc5 {[%clk 0:01:19]}  bxc5 {[%clk 0:01:59]} 19. Rhd1 {[%clk 0:01:19]}  Rb8 {[%clk 0:01:50]} 20. Qe5 {[%clk 0:01:16]}  Qd8 {[%clk 0:01:41]} 21. g4 {[%clk 0:00:57]}  Nxg4 {[%clk 0:01:20]} 22. Qg3 {[%clk 0:00:56]}  Bc8 {[%clk 0:01:19]} 23. h3 {[%clk 0:00:48]}  Qf6 {[%clk 0:01:19]} 24. Rd2 {[%clk 0:00:24]}  Rcb7 {[%clk 0:01:19]} 25. Rxc5 {[%clk 0:00:24]}  Rxb2 {[%clk 0:00:53]} 26. Rxc8+ {[%clk 0:00:24]}  Rxc8 {[%clk 0:00:54]} 27. Rxb2 {[%clk 0:00:25]}  Qc3 {[%clk 0:00:55]} 28. Ka2 {[%clk 0:00:16]}  Nxe3 {[%clk 0:00:38]} 29. fxe3 {[%clk 0:00:10]}  Qxd3 {[%clk 0:00:39]} 30. Qe5 {[%clk 0:00:07]}  Rc3 {[%clk 0:00:33]} 31. Qe8+ {[%clk 0:00:07]}  Kh7 {[%clk 0:00:33]} 32. Qa4 {[%clk 0:00:05]}  Qxe3 {[%clk 0:00:33]} 33. Nd2 {[%clk 0:00:03]}  f5 {[%clk 0:00:28]} 34. Nb1 {[%clk 0:00:02]}  Rd3 {[%clk 0:00:25]} 0-1


[Site "https://www.chess.com"]

[Event "Titled Tuesday Blitz May 03 Early 2022"]
[White "Legenia, Artem"]
[Black "Mohammadian, Mohammad"]
[WhiteFideId "14136945"]
[BlackFideId "12566055"]
[WhiteElo "1936"]
[BlackElo "1544"]
[Result "1-0"]
[Round "08"]
[TimeControl "180+1"]
[Date "2022.05.03"]
[WhiteClock "0:01:53"]
[BlackClock "0:00:51"]

1. d4 {[%clk 0:03:00]}  Nf6 {[%clk 0:02:58]} 2. Nf3 {[%clk 0:02:50]}  g6 {[%clk 0:02:58]} 3. Bf4 {[%clk 0:02:50]}  Bg7 {[%clk 0:02:57]} 4. h3 {[%clk 0:02:50]}  O-O {[%clk 0:02:56]} 5. e3 {[%clk 0:02:51]}  d5 {[%clk 0:02:56]} 6. Bd3 {[%clk 0:02:50]}  c6 {[%clk 0:02:53]} 7. c3 {[%clk 0:02:50]}  Nbd7 {[%clk 0:02:53]} 8. O-O {[%clk 0:02:50]}  Qb6 {[%clk 0:02:52]} 9. Qb3 {[%clk 0:02:49]}  Qxb3 {[%clk 0:02:51]} 10. axb3 {[%clk 0:02:49]}  Re8 {[%clk 0:02:49]} 11. Nbd2 {[%clk 0:02:49]}  Nh5 {[%clk 0:02:47]} 12. Bh2 {[%clk 0:02:48]}  e5 {[%clk 0:02:47]} 13. dxe5 {[%clk 0:02:47]}  Nxe5 {[%clk 0:02:43]} 14. Nxe5 {[%clk 0:02:48]}  Bxe5 {[%clk 0:02:42]} 15. b4 {[%clk 0:02:48]}  Bxh2+ {[%clk 0:02:41]} 16. Kxh2 {[%clk 0:02:48]}  Nf6 {[%clk 0:02:39]} 17. b5 {[%clk 0:02:48]}  c5 {[%clk 0:02:33]} 18. c4 {[%clk 0:02:37]}  Be6 {[%clk 0:02:23]} 19. cxd5 {[%clk 0:02:34]}  Bxd5 {[%clk 0:02:22]} 20. Bc4 {[%clk 0:02:25]}  b6 {[%clk 0:02:20]} 21. Ra4 {[%clk 0:02:21]}  Bb7 {[%clk 0:02:15]} 22. Rfa1 {[%clk 0:02:19]}  Ne4 {[%clk 0:01:56]} 23. Nxe4 {[%clk 0:02:16]}  Bxe4 {[%clk 0:01:54]} 24. Rxa7 {[%clk 0:02:16]}  Rxa7 {[%clk 0:01:47]} 25. Rxa7 {[%clk 0:02:16]}  Rf8 {[%clk 0:01:38]} 26. Re7 {[%clk 0:02:15]}  Bf5 {[%clk 0:01:29]} 27. e4 {[%clk 0:02:14]}  Be6 {[%clk 0:01:27]} 28. Bxe6 {[%clk 0:02:13]}  fxe6 {[%clk 0:01:27]} 29. f3 {[%clk 0:02:07]}  Rf6 {[%clk 0:01:26]} 30. Kg3 {[%clk 0:02:02]}  e5 {[%clk 0:01:25]} 31. Rxe5 {[%clk 0:02:02]}  Kf7 {[%clk 0:01:22]} 32. Kf2 {[%clk 0:02:00]}  Rd6 {[%clk 0:01:22]} 33. Rd5 {[%clk 0:01:58]}  Rxd5 {[%clk 0:01:17]} 34. exd5 {[%clk 0:01:58]}  Kf6 {[%clk 0:01:17]} 35. f4 {[%clk 0:01:59]}  Ke7 {[%clk 0:01:16]} 36. Ke3 {[%clk 0:01:59]}  Kd6 {[%clk 0:01:16]} 37. Ke4 {[%clk 0:01:59]}  h6 {[%clk 0:01:13]} 38. b3 {[%clk 0:01:58]}  h5 {[%clk 0:01:10]} 39. h4 {[%clk 0:01:58]}  Kc7 {[%clk 0:01:08]} 40. Ke5 {[%clk 0:01:58]}  Kd7 {[%clk 0:01:08]} 41. d6 {[%clk 0:01:59]}  Kd8 {[%clk 0:01:07]} 42. Kd5 {[%clk 0:01:55]}  Kd7 {[%clk 0:01:06]} 43. g3 {[%clk 0:01:55]}  Ke8 {[%clk 0:01:00]} 44. Ke6 {[%clk 0:01:53]}  Kd8 {[%clk 0:01:00]} 45. d7 {[%clk 0:01:54]}  Kc7 {[%clk 0:00:59]} 46. Ke7 {[%clk 0:01:54]}  c4 {[%clk 0:00:51]} 47. bxc4 {[%clk 0:01:53]} 1-0


[Site "https://www.chess.com"]

[Event "Titled Tuesday Blitz May 03 Early 2022"]
[White "Liyanage, Ranindu Dilshan"]
[Black "Rodchenkov, Sergey D."]
[WhiteFideId "9915834"]
[BlackFideId "4168712"]
[WhiteElo "1858"]
[BlackElo "2306"]
[Result "1-0"]
[Round "08"]
[TimeControl "180+1"]
[Date "2022.05.03"]
[WhiteClock "0:02:07"]
[BlackClock "0:00:58"]

1. e4 {[%clk 0:03:00]}  c5 {[%clk 0:02:59]} 2. Nf3 {[%clk 0:03:01]}  d6 {[%clk 0:03:00]} 3. d4 {[%clk 0:03:01]}  cxd4 {[%clk 0:03:01]} 4. Nxd4 {[%clk 0:03:02]}  Nf6 {[%clk 0:03:02]} 5. Nc3 {[%clk 0:03:03]}  a6 {[%clk 0:03:02]} 6. h3 {[%clk 0:03:03]}  e5 {[%clk 0:03:02]} 7. Nb3 {[%clk 0:03:04]}  Be6 {[%clk 0:02:47]} 8. f4 {[%clk 0:03:03]}  exf4 {[%clk 0:02:41]} 9. Bxf4 {[%clk 0:03:04]}  Nc6 {[%clk 0:02:42]} 10. Qf3 {[%clk 0:03:00]}  Ne5 {[%clk 0:02:35]} 11. Qf2 {[%clk 0:03:00]}  Be7 {[%clk 0:02:31]} 12. O-O-O {[%clk 0:02:59]}  Qc7 {[%clk 0:02:31]} 13. g4 {[%clk 0:02:59]}  O-O {[%clk 0:02:24]} 14. Bg2 {[%clk 0:02:59]}  Rfc8 {[%clk 0:02:20]} 15. Kb1 {[%clk 0:02:50]}  b5 {[%clk 0:02:19]} 16. Nd4 {[%clk 0:02:47]}  Rab8 {[%clk 0:02:14]} 17. Nd5 {[%clk 0:02:46]}  Bxd5 {[%clk 0:01:44]} 18. exd5 {[%clk 0:02:46]}  Nfd7 {[%clk 0:01:45]} 19. Rhe1 {[%clk 0:02:44]}  Bf8 {[%clk 0:01:28]} 20. Nc6 {[%clk 0:02:27]}  Nxc6 {[%clk 0:01:17]} 21. dxc6 {[%clk 0:02:28]}  Ne5 {[%clk 0:01:16]} 22. Bxe5 {[%clk 0:02:26]}  dxe5 {[%clk 0:01:17]} 23. Rd7 {[%clk 0:02:26]}  Qa5 {[%clk 0:01:17]} 24. Qxf7+ {[%clk 0:02:22]}  Kh8 {[%clk 0:01:17]} 25. Rf1 {[%clk 0:02:18]}  b4 {[%clk 0:01:10]} 26. Bd5 {[%clk 0:02:17]}  Be7 {[%clk 0:01:02]} 27. Rxe7 {[%clk 0:02:14]}  Rg8 {[%clk 0:01:03]} 28. c7 {[%clk 0:02:11]}  Rbf8 {[%clk 0:00:59]} 29. Qxf8 {[%clk 0:02:08]}  Qxc7 {[%clk 0:00:58]} 30. Qxg8# {[%clk 0:02:07]} 1-0


[Site "https://www.chess.com"]

[Event "Titled Tuesday Blitz May 03 Early 2022"]
[White "Lopez, Henry"]
[Black "Kanyamarala, Tarun"]
[WhiteFideId "5203830"]
[BlackFideId "45004714"]
[WhiteElo "2177"]
[BlackElo "2177"]
[Result "1-0"]
[Round "08"]
[TimeControl "180+1"]
[Date "2022.05.03"]
[WhiteClock "0:01:27"]
[BlackClock "0:01:49"]

1. d4 {[%clk 0:03:00]}  d5 {[%clk 0:02:53]} 2. Nf3 {[%clk 0:03:00]}  Nc6 {[%clk 0:02:53]} 3. c4 {[%clk 0:02:59]}  Bg4 {[%clk 0:02:51]} 4. Nc3 {[%clk 0:02:59]}  Nf6 {[%clk 0:02:46]} 5. cxd5 {[%clk 0:02:50]}  Nxd5 {[%clk 0:02:45]} 6. e4 {[%clk 0:02:50]}  Nxc3 {[%clk 0:02:45]} 7. bxc3 {[%clk 0:02:49]}  e5 {[%clk 0:02:44]} 8. d5 {[%clk 0:02:48]}  Bxf3 {[%clk 0:02:41]} 9. Qxf3 {[%clk 0:02:41]}  Ne7 {[%clk 0:02:38]} 10. Bc4 {[%clk 0:02:39]}  Ng6 {[%clk 0:02:31]} 11. g3 {[%clk 0:02:19]}  Bd6 {[%clk 0:02:29]} 12. h4 {[%clk 0:02:19]}  O-O {[%clk 0:02:28]} 13. h5 {[%clk 0:02:18]}  Ne7 {[%clk 0:02:28]} 14. h6 {[%clk 0:02:19]}  f5 {[%clk 0:02:11]} 15. hxg7 {[%clk 0:02:18]}  Rf7 {[%clk 0:02:11]} 16. Qh5 {[%clk 0:02:10]}  Rxg7 {[%clk 0:02:09]} 17. exf5 {[%clk 0:02:08]}  Qf8 {[%clk 0:02:03]} 18. Bh6 {[%clk 0:02:04]}  Qxf5 {[%clk 0:02:03]} 19. Qxf5 {[%clk 0:02:00]}  Nxf5 {[%clk 0:02:03]} 20. Bxg7 {[%clk 0:02:00]}  Kxg7 {[%clk 0:02:04]} 21. Ke2 {[%clk 0:01:59]}  h6 {[%clk 0:02:03]} 22. Bd3 {[%clk 0:01:58]}  e4 {[%clk 0:02:00]} 23. Bxe4 {[%clk 0:01:57]}  Re8 {[%clk 0:02:01]} 24. Kf3 {[%clk 0:01:56]}  Ne7 {[%clk 0:01:59]} 25. Rae1 {[%clk 0:01:54]}  Nc8 {[%clk 0:01:56]} 26. Kg2 {[%clk 0:01:52]}  Nb6 {[%clk 0:01:55]} 27. Bf3 {[%clk 0:01:48]}  Rf8 {[%clk 0:01:54]} 28. Re6 {[%clk 0:01:45]}  Rh8 {[%clk 0:01:51]} 29. Be4 {[%clk 0:01:42]}  Na4 {[%clk 0:01:50]} 30. c4 {[%clk 0:01:38]}  Nc5 {[%clk 0:01:49]} 31. Rg6+ {[%clk 0:01:33]}  Kf7 {[%clk 0:01:50]} 32. Bc2 {[%clk 0:01:29]}  Be5 {[%clk 0:01:49]} 33. Rhxh6 {[%clk 0:01:27]} 1-0


[Site "https://www.chess.com"]

[Event "Titled Tuesday Blitz May 03 Early 2022"]
[White "Lucas, Arthur"]
[Black "Piliczewski, Bogusz"]
[WhiteFideId "26093073"]
[BlackFideId "1104144"]
[WhiteElo "2129"]
[BlackElo "1896"]
[Result "1-0"]
[Round "08"]
[TimeControl "180+1"]
[Date "2022.05.03"]
[WhiteClock "0:01:35"]
[BlackClock "0:01:07"]

1. d4 {[%clk 0:03:00]}  d5 {[%clk 0:02:59]} 2. Bf4 {[%clk 0:02:59]}  Nf6 {[%clk 0:02:57]} 3. e3 {[%clk 0:02:59]}  Bf5 {[%clk 0:02:57]} 4. c4 {[%clk 0:02:58]}  e6 {[%clk 0:02:57]} 5. Nc3 {[%clk 0:02:58]}  c6 {[%clk 0:02:56]} 6. Qb3 {[%clk 0:02:59]}  Qb6 {[%clk 0:02:55]} 7. c5 {[%clk 0:02:59]}  Qxb3 {[%clk 0:02:54]} 8. axb3 {[%clk 0:03:00]}  Nbd7 {[%clk 0:02:53]} 9. b4 {[%clk 0:03:01]}  a6 {[%clk 0:02:53]} 10. Nf3 {[%clk 0:03:00]}  Be7 {[%clk 0:02:51]} 11. b5 {[%clk 0:02:59]}  cxb5 {[%clk 0:02:50]} 12. Nxb5 {[%clk 0:02:55]}  Rc8 {[%clk 0:02:50]} 13. Nd6+ {[%clk 0:02:45]}  Bxd6 {[%clk 0:02:50]} 14. Bxd6 {[%clk 0:02:46]}  Ne4 {[%clk 0:02:48]} 15. Bf4 {[%clk 0:02:41]}  O-O {[%clk 0:02:42]} 16. b4 {[%clk 0:02:37]}  f6 {[%clk 0:02:17]} 17. h3 {[%clk 0:02:31]}  g5 {[%clk 0:02:15]} 18. Bh2 {[%clk 0:02:30]}  h5 {[%clk 0:02:10]} 19. Nd2 {[%clk 0:02:19]}  Nxd2 {[%clk 0:02:09]} 20. Kxd2 {[%clk 0:02:20]}  e5 {[%clk 0:01:59]} 21. b5 {[%clk 0:02:12]}  exd4 {[%clk 0:01:47]} 22. exd4 {[%clk 0:02:10]}  axb5 {[%clk 0:01:47]} 23. Bxb5 {[%clk 0:02:10]}  Nb8 {[%clk 0:01:46]} 24. Bd6 {[%clk 0:01:58]}  Rf7 {[%clk 0:01:42]} 25. Ra8 {[%clk 0:01:56]}  Nc6 {[%clk 0:01:40]} 26. Rxc8+ {[%clk 0:01:55]}  Bxc8 {[%clk 0:01:40]} 27. Kc3 {[%clk 0:01:53]}  Bd7 {[%clk 0:01:34]} 28. Ra1 {[%clk 0:01:48]}  Ne5 {[%clk 0:01:08]} 29. Ra8+ {[%clk 0:01:40]}  Kg7 {[%clk 0:01:07]} 30. dxe5 {[%clk 0:01:35]}  Bxb5 {[%clk 0:01:07]} 31. e6 {[%clk 0:01:35]} 1-0


[Site "https://www.chess.com"]

[Event "Titled Tuesday Blitz May 03 Early 2022"]
[White "Manukian, Artak"]
[Black "Lauridsen, Jesper Morch"]
[WhiteFideId "13301373"]
[BlackFideId "1401890"]
[WhiteElo "2368"]
[BlackElo "2243"]
[Result "0-1"]
[Round "08"]
[TimeControl "180+1"]
[Date "2022.05.03"]
[WhiteClock "0:00:02"]
[BlackClock "0:01:31"]

1. e4 {[%clk 0:01:52]}  c6 {[%clk 0:02:55]} 2. d4 {[%clk 0:01:45]}  g6 {[%clk 0:02:55]} 3. c4 {[%clk 0:01:45]}  Bg7 {[%clk 0:02:55]} 4. Nc3 {[%clk 0:01:45]}  d6 {[%clk 0:02:55]} 5. Bg5 {[%clk 0:01:45]}  Nd7 {[%clk 0:02:54]} 6. Qd2 {[%clk 0:01:45]}  h6 {[%clk 0:02:53]} 7. Be3 {[%clk 0:01:44]}  e5 {[%clk 0:02:51]} 8. d5 {[%clk 0:01:44]}  cxd5 {[%clk 0:02:50]} 9. cxd5 {[%clk 0:01:42]}  f5 {[%clk 0:02:49]} 10. f3 {[%clk 0:01:40]}  Ngf6 {[%clk 0:02:45]} 11. Bd3 {[%clk 0:01:34]}  fxe4 {[%clk 0:02:34]} 12. Bxe4 {[%clk 0:01:32]}  Nxe4 {[%clk 0:02:33]} 13. fxe4 {[%clk 0:01:29]}  O-O {[%clk 0:02:28]} 14. Nf3 {[%clk 0:01:27]}  g5 {[%clk 0:02:27]} 15. O-O {[%clk 0:01:22]}  Nf6 {[%clk 0:02:23]} 16. h3 {[%clk 0:01:19]}  b5 {[%clk 0:02:22]} 17. a3 {[%clk 0:01:16]}  a5 {[%clk 0:02:15]} 18. Nh2 {[%clk 0:01:13]}  Rb8 {[%clk 0:02:12]} 19. b4 {[%clk 0:01:05]}  a4 {[%clk 0:02:02]} 20. Rf2 {[%clk 0:00:08]}  Nh5 {[%clk 0:01:45]} 21. Rxf8+ {[%clk 0:00:05]}  Qxf8 {[%clk 0:01:44]} 22. Rf1 {[%clk 0:00:06]}  Qe7 {[%clk 0:01:45]} 23. Qe2 {[%clk 0:00:06]}  Nf4 {[%clk 0:01:44]} 24. Bxf4 {[%clk 0:00:06]}  exf4 {[%clk 0:01:45]} 25. Nxb5 {[%clk 0:00:07]}  Ba6 {[%clk 0:01:43]} 26. Rc1 {[%clk 0:00:05]}  Bxb5 {[%clk 0:01:41]} 27. Qg4 {[%clk 0:00:05]}  Bd7 {[%clk 0:01:38]} 28. Qh5 {[%clk 0:00:03]}  Qxe4 {[%clk 0:01:33]} 29. Rc7 {[%clk 0:00:02]}  Qe3+ {[%clk 0:01:31]} 30. Kf1 {[%clk 0:00:02]}  Bb5+ {[%clk 0:01:31]} 0-1


[Site "https://www.chess.com"]